fUSD/lending_fUSD_20260107
["ID","MTS","AMOUNT","RATE_DAILY","PERIOD"]
[400763231,1767821439441,-8314.01418069,0.00014422,2]
[400763233,1767821439450,-198.23117811,0.00014422,2]
[400763235,1767821439459,-500.0,0.00014424,2]
[400763237,1767821439468,-150.0,0.00014424,2]
[400763239,1767821439478,-920.0,0.00014424,2]
[400763241,1767821439488,-661.0,0.00014424,2]
[400763243,1767821439497,-500.0,0.00014444,2]
[400763245,1767821439507,-500.0,0.00014444,2]
[400763247,1767821439517,-500.0,0.00014444,2]
[400763249,1767821439526,-539.15521003,0.00014444,2]
[400763251,1767821439535,-500.0,0.00014475,2]
[400763253,1767821439545,-213.04869364,0.00014475,2]
[400763255,1767821439554,-500.0,0.00014475,2]
[400763258,1767821439563,-481.78521717,0.00014475,2]
[400763260,1767821439572,-79163.45997082,0.00014476,2]
[400763262,1767821439582,-500.0,0.00014479,2]
[400763264,1767821439591,-150.0,0.00014479,2]
[400763265,1767821439601,-920.0,0.00014479,2]
[400763268,1767821439611,-661.0,0.00014479,2]
[400763269,1767821439620,-1455.64956121,0.00014488,2]
[400763272,1767821439630,-227.62898952,0.0001449,2]
[400763274,1767821439639,-151.0,0.0001449,2]
[400763275,1767821439649,-151.0,0.0001449,2]
[400763277,1767821439658,-151.0,0.0001449,2]
[400763279,1767821439668,-151.0,0.0001449,2]
[400763281,1767821439681,-151.0,0.0001449,2]
[400763283,1767821439690,-151.0,0.0001449,2]
[400763285,1767821439699,-151.0,0.0001449,2]
[400763287,1767821439709,-151.0,0.0001449,2]
[400763289,1767821439719,-151.0,0.0001449,2]
[400763291,1767821439729,-151.0,0.0001449,2]
[400763293,1767821439738,-151.0,0.0001449,2]
[400763295,1767821439747,-500.0,0.0001449,2]
[400763297,1767821439756,-25649.89,0.00014498,2]
[400763299,1767821439766,-3687.07,0.00014498,2]
[400763301,1767821439775,-500.0,0.00014498,2]
[400763303,1767821439784,-500.0,0.00014498,2]
[400763305,1767821439793,-500.0,0.00014498,2]
[400763307,1767821439802,-500.0,0.00014498,2]
[400763309,1767821439812,-564.95924296,0.00014498,2]
[400763311,1767821439821,-420.4969783,0.00014498,2]
[400763313,1767821439831,-500.0,0.00014498,2]
[400763315,1767821439840,-515.01569195,0.00014498,2]
[400763317,1767821439850,-508.16431547,0.00014498,2]
[400763319,1767821439859,-150.99,0.00014498,2]
[400763321,1767821439868,-9999.99,0.00014498,2]
[400763323,1767821439878,-57097.28,0.00014498,2]
[400763325,1767821439888,-500.0,0.00014498,2]
[400763327,1767821439897,-500.0,0.00014498,2]
[400763329,1767821439906,-500.0,0.00014498,2]
[400763331,1767821439915,-310.42839677,0.00014498,2]
[400763333,1767821439925,-500.0,0.00014498,2]
[400763335,1767821439935,-500.0,0.00014498,2]
[400763337,1767821439944,-500.0,0.00014498,2]
[400763339,1767821439953,-500.0,0.00014498,2]
[400763341,1767821439963,-500.0,0.00014498,2]
[400763343,1767821439972,-500.0,0.00014498,2]
[400763345,1767821439981,-500.0,0.00014498,2]
[400763347,1767821439990,-500.0,0.00014498,2]
[400763349,1767821439999,-500.0,0.00014498,2]
[400763351,1767821440008,-500.0,0.00014498,2]
[400763353,1767821440017,-150.99,0.00014499,2]
[400763355,1767821440027,-9581.1,0.00014499,2]
[400763357,1767821440036,-1178.51,0.00014499,2]
[400763359,1767821440046,-500.0,0.00014499,2]
[400763361,1767821440057,-500.0,0.00014499,2]
[400763363,1767821440066,-166.66,0.00014522,2]
[400763365,1767821440075,-500.0,0.00014534,2]
[400763367,1767821440085,-150.0,0.00014534,2]
[400763369,1767821440094,-920.0,0.00014534,2]
[400763371,1767821440103,-661.0,0.00014534,2]
[400763373,1767821440112,-10294.37,0.00014534,2]
[400763375,1767821440121,-200.0,0.00014548,2]
[400763377,1767821440130,-150.0,0.00014548,2]
[400763379,1767821440140,-200.0,0.00014552,2]
[400763381,1767821440150,-500.0,0.00014554,2]
[400763383,1767821440158,-500.0,0.00014554,2]
[400763385,1767821440167,-500.0,0.00014584,2]
[400763387,1767821440178,-500.0,0.00014588,2]
[400763389,1767821440187,-200.0,0.00014588,2]
[400763391,1767821440197,-920.0,0.00014588,2]
[400763394,1767821440207,-661.0,0.00014588,2]
[400763396,1767821440216,-1000.0,0.00014599,2]
[400763398,1767821440226,-1316.3245,0.00014599,2]
[400763400,1767821440235,-500.0,0.00014609,2]
[400763401,1767821440244,-500.0,0.00014609,2]
[400763403,1767821440254,-500.0,0.00014643,2]
[400763405,1767821440263,-920.0,0.00014643,2]
[400763408,1767821440272,-661.0,0.00014643,2]
[400763409,1767821440282,-500.0,0.00014663,2]
[400763411,1767821440292,-500.0,0.00014663,2]
[400763414,1767821440302,-500.0,0.00014664,2]
[400763415,1767821440311,-200.0,0.00014693,2]
[400763418,1767821440321,-920.0,0.00014698,2]
[400763420,1767821440331,-661.0,0.00014698,2]
[400763422,1767821440341,-500.0,0.00014698,2]
[400763424,1767821440350,-500.0,0.00014698,2]
[400763426,1767821440359,-500.0,0.00014698,2]
[400763428,1767821440369,-283.51547018,0.00014698,2]
[400763429,1767821440378,-1476.84,0.00014698,2]
[400763432,1767821440387,-500.0,0.00014698,2]
[400763433,1767821440396,-500.0,0.00014698,2]
[400763436,1767821440407,-500.0,0.00014698,2]
[400763437,1767821440415,-500.0,0.00014698,2]
[400763439,1767821440424,-500.0,0.00014698,2]
[400763442,1767821440434,-500.0,0.00014698,2]
[400763444,1767821440443,-500.0,0.00014698,2]
[400763446,1767821440452,-500.0,0.00014698,2]
[400763448,1767821440461,-500.0,0.00014698,2]
[400763450,1767821440472,-500.0,0.00014698,2]
[400763452,1767821440482,-500.0,0.00014698,2]
[400763453,1767821440492,-500.0,0.00014698,2]
[400763456,1767821440502,-500.0,0.00014718,2]
[400763457,1767821440511,-920.0,0.00014753,2]
[400763459,1767821440520,-661.0,0.00014753,2]
[400763462,1767821440530,-494.00411142,0.00014773,2]
[400763464,1767821440539,-500.0,0.00014797,2]
[400763465,1767821440548,-500.0,0.00014799,2]
[400763467,1767821440557,-500.0,0.00014799,2]
[400763469,1767821440566,-920.0,0.00014808,2]
[400763471,1767821440575,-661.0,0.00014808,2]
[400763474,1767821440585,-8314.01418062,0.00014808,2]
[400763475,1767821440594,-166.66,0.00014816,2]
[400763478,1767821440604,-200.0,0.0001484,2]
[400763479,1767821440613,-500.0,0.00014854,2]
[400763482,1767821440622,-500.0,0.00014854,2]
[400763484,1767821440633,-920.0,0.00014862,2]
[400763486,1767821440643,-661.0,0.00014862,2]
[400763488,1767821440652,-500.0,0.00014909,2]
[400763490,1767821440661,-500.0,0.00014909,2]
[400763492,1767821440671,-920.0,0.00014917,2]
[400763494,1767821440685,-661.0,0.00014917,2]
[400763496,1767821440694,-198.23117805,0.00014919,2]
[400763498,1767821440703,-500.0,0.00014938,2]
[400763500,1767821440712,-500.0,0.00014963,2]
[400763502,1767821440723,-500.0,0.00014963,2]
[400763504,1767821440732,-920.0,0.00014972,2]
[400763506,1767821440741,-661.0,0.00014972,2]
[400763508,1767821440751,-1476.84,0.00014972,2]
[400763510,1767821440760,-1081.33997457,0.00014983,2]
[400763512,1767821440771,-151.0,0.00014986,2]
[400763514,1767821440780,-78289.7997583,0.00014989,2]
[400763516,1767821440790,-200.0,0.00014989,2]
[400763518,1767821440799,-500.0,0.00015018,2]
[400763520,1767821440808,-272.01341084,0.00015018,2]
[400763522,1767821440818,-920.0,0.00015027,2]
[400763524,1767821440827,-661.0,0.00015027,2]
[400763526,1767821440836,-500.0,0.00015073,2]
[400763528,1767821440845,-500.0,0.00015073,2]
[400763531,1767821440854,-210.44596134,0.00015073,2]
[400763534,1767821440863,-411.91622264,0.00015073,2]
[400763537,1767821440872,-161.8794398,0.00015073,2]
[400763540,1767821440881,-500.0,0.00015073,2]
[400763543,1767821440890,-500.0,0.00015073,2]
[400763546,1767821440899,-536.66734105,0.00015073,2]
[400763549,1767821440908,-500.0,0.00015073,2]
[400763552,1767821440917,-500.0,0.00015073,2]
[400763555,1767821440926,-500.0,0.00015073,2]
[400763558,1767821440935,-502.16378022,0.00015073,2]
[400763561,1767821440945,-556.0741427,0.00015073,2]
[400763564,1767821440953,-500.0,0.00015073,2]
[400763567,1767821440963,-500.0,0.00015073,2]
[400763570,1767821440972,-500.0,0.00015073,2]
[400763573,1767821440981,-169.74559645,0.00015073,2]
[400763576,1767821440990,-500.0,0.00015073,2]
[400763579,1767821440999,-500.0,0.00015073,2]
[400763581,1767821441008,-500.0,0.00015073,2]
[400763584,1767821441017,-500.0,0.00015073,2]
[400763587,1767821441026,-413.08976684,0.00015073,2]
[400763590,1767821441035,-500.0,0.00015073,2]
[400763592,1767821441044,-500.0,0.00015073,2]
[400763594,1767821441053,-500.0,0.00015073,2]
[400763597,1767821441061,-500.0,0.00015073,2]
[400763599,1767821441070,-500.0,0.00015073,2]
[400763602,1767821441079,-500.0,0.00015073,2]
[400763605,1767821441088,-250.0,0.00015073,2]
[400763608,1767821441097,-920.0,0.00015082,2]
[400763611,1767821441106,-661.0,0.00015082,2]
[400763614,1767821441115,-166.66,0.00015109,2]
[400763617,1767821441124,-150.0,0.00015128,2]
[400763620,1767821441133,-150.0,0.00015128,2]
[400763623,1767821441142,-150.0,0.00015128,2]
[400763625,1767821441151,-150.0,0.00015128,2]
[400763627,1767821441160,-150.0,0.00015128,2]
[400763629,1767821441169,-150.0,0.00015128,2]
[400763631,1767821441181,-178.03708143,0.00015128,2]
[400763633,1767821441190,-920.0,0.00015136,2]
[400763634,1767821441200,-661.0,0.00015136,2]
[400763636,1767821441210,-200.0,0.00015139,2]
[400763639,1767821441219,-150.0,0.00015183,2]
[400763641,1767821441230,-150.0,0.00015183,2]
[400763643,1767821441240,-150.0,0.00015183,2]
[400763644,1767821441250,-150.0,0.00015183,2]
[400763646,1767821441259,-271.23482998,0.00015183,2]
[400763648,1767821441269,-920.0,0.00015191,2]
[400763650,1767821441278,-661.0,0.00015191,2]
[400763652,1767821441287,-8314.01418062,0.00015195,2]
[400763655,1767821441298,-128775.80647304,0.00015205,2]
[400763657,1767821441307,-500.0,0.00015212,2]
[400763659,1767821441316,-200.0,0.00015238,2]
[400763660,1767821441325,-200.0,0.00015238,2]
[400763662,1767821441335,-204.51452503,0.00015238,2]
[400763665,1767821441344,-200.0,0.00015238,2]
[400763666,1767821441353,-920.0,0.00015246,2]
[400763668,1767821441362,-661.0,0.00015246,2]
[400763671,1767821441371,-1476.84,0.00015246,2]
[400763672,1767821441380,-181869.8724887,0.0001528,2]
[400763675,1767821441390,-237712.91512365,0.0001528,2]
[400763676,1767821441399,-920.0,0.00015301,2]
[400763708,1767821441684,-661.0,0.00015301,2]
[400763710,1767821441695,-500.0,0.00015318,2]
[400763712,1767821441705,-920.0,0.00015356,2]
[400763714,1767821441714,-661.0,0.00015356,2]
[400763716,1767821441725,-467.24,0.00015378,2]
[400763718,1767821441735,-167.14,0.00015384,2]
[400763720,1767821441744,-166.66,0.00015402,2]
[400763722,1767821441755,-920.0,0.0001541,2]
[400763724,1767821441764,-661.0,0.0001541,2]
[400763726,1767821441773,-198.23117805,0.00015416,2]
[400763728,1767821441782,-920.0,0.00015465,2]
[400763730,1767821441791,-661.0,0.00015465,2]
[400763733,1767821441801,-255.0,0.00015471,2]
[400763735,1767821441811,-920.0,0.0001552,2]
[400763737,1767821441820,-661.0,0.0001552,2]
[400763739,1767821441829,-1476.84,0.0001552,2]
[400763740,1767821441839,-500.0,0.00015526,2]
[400763742,1767821441848,-500.0,0.00015527,2]
[400763745,1767821441857,-1081.33997457,0.00015566,2]
[400763746,1767821441868,-920.0,0.00015575,2]
[400763749,1767821441878,-661.0,0.00015575,2]
[400763751,1767821441887,-8314.01418062,0.00015581,2]
[400763753,1767821441896,-693.0,0.00015601,2]
[400763755,1767821441907,-515.65451742,0.00015621,2]
[400763756,1767821441916,-821.82288534,0.00015621,2]
[400763758,1767821441926,-1000.0,0.00015621,2]
[400763760,1767821441935,-949.69083076,0.00015621,2]
[400763763,1767821441947,-1000.0,0.00015621,2]
[400763764,1767821441956,-1029.13192156,0.00015621,2]
[400763766,1767821441965,-1000.0,0.00015621,2]
[400763767,1767821441975,-1000.0,0.00015621,2]
[400763768,1767821441984,-1000.0,0.00015621,2]
[400763769,1767821441993,-1000.0,0.00015621,2]
[400763770,1767821442002,-1000.0,0.00015621,2]
[400763771,1767821442012,-1009.96734995,0.00015621,2]
[400763772,1767821442021,-1000.0,0.00015621,2]
[400763773,1767821442030,-1000.0,0.00015621,2]
[400763774,1767821442039,-1000.0,0.00015621,2]
[400763775,1767821442048,-1128.37348131,0.00015621,2]
[400763776,1767821442057,-500.73448024,0.00015621,2]
[400763777,1767821442067,-920.0,0.00015629,2]
[400763778,1767821442076,-661.0,0.00015629,2]
[400763779,1767821442085,-693.0,0.00015656,2]
[400763780,1767821442095,-932.1858208,0.00015684,2]
[400763782,1767821442105,-675.24922462,0.00015684,2]
[400763784,1767821442114,-816.4463541,0.00015709,2]
[400763786,1767821442123,-693.0,0.00015711,2]
[400763788,1767821442133,-420.0,0.00015717,2]
[400763790,1767821442142,-420.0,0.00015717,2]
[400763792,1767821442151,-336.00521365,0.00015765,2]
[400763795,1767821442167,-356.99478635,0.00015765,2]
[400763796,1767821442176,-2500.0,0.00015768,2]
[400763798,1767821442185,-250.0,0.00015768,2]
[400763800,1767821442194,-195.0,0.00015768,2]
[400763803,1767821442204,-1680.0,0.00015787,2]
[400763805,1767821442213,-300.0,0.00015788,2]
[400763807,1767821442223,-1476.84,0.00015794,2]
[400763809,1767821442231,-693.0,0.0001582,2]
[400763811,1767821442240,-195.0,0.00015853,2]
[400763813,1767821442250,-300.0,0.00015853,2]
[400763815,1767821442259,-354.35076502,0.00015853,2]
[400763817,1767821442268,-1138.62472585,0.00015853,2]
[400763819,1767821442277,-693.0,0.00015875,2]
[400763821,1767821442286,-344.5991048,0.000159,2]
[400763823,1767821442295,-344.5991048,0.000159,2]
[400763824,1767821442304,-344.5991048,0.000159,2]
[400763826,1767821442313,-344.5991048,0.000159,2]
[400763828,1767821442322,-198.23117805,0.00015913,2]
[400763830,1767821442331,-1133.55963709,0.00015921,2]
[400763832,1767821442340,-693.0,0.0001593,2]
[400763835,1767821442350,-8314.01418062,0.00015968,2]
[400763837,1767821442359,-693.0,0.00015985,2]
[400763839,1767821442369,-132747.14261672,0.00016,2]
[400763841,1767821442380,-142992.67333596,0.00016,4]
[400763843,1767821442389,-249.063448,0.00016,2]
[400763845,1767821442399,-693.0,0.00016039,2]
[400763847,1767821442408,-456.32298151,0.00016056,2]
[400763848,1767821442418,-1476.84,0.00016068,2]
[400763851,1767821442428,-419.33594592,0.00016081,2]
[400763853,1767821442437,-500.0,0.00016081,2]
[400763855,1767821442447,-900.0,0.00016082,2]
[400763856,1767821442456,-3000.0,0.00016082,2]
[400763859,1767821442465,-482.63,0.00016082,2]
[400763861,1767821442474,-482.63,0.00016082,2]
[400763862,1767821442483,-693.0,0.00016094,2]
[400763864,1767821442492,-693.0,0.00016149,2]
[400763866,1767821442501,-1081.33997457,0.0001615,2]
[400763868,1767821442510,-500.0,0.00016168,2]
[400763870,1767821442520,-500.0,0.00016168,2]
[400763873,1767821442530,-1500.0,0.00016168,2]
[400763874,1767821442539,-500.0,0.00016168,2]
[400763876,1767821442549,-500.0,0.00016168,2]
[400763878,1767821442558,-500.0,0.00016168,2]
[400763881,1767821442568,-876.44941512,0.00016168,2]
[400763883,1767821442578,-1500.0,0.00016168,2]
[400763884,1767821442587,-1500.0,0.00016168,2]
[400763886,1767821442596,-1500.0,0.00016168,2]
[400763888,1767821442606,-5000.00325986,0.000162,5]
[400763890,1767821442615,-693.0,0.00016204,2]
[400763892,1767821442625,-693.0,0.00016259,2]
[400763894,1767821442635,-693.0,0.00016313,2]
[400763896,1767821442645,-200.0,0.0001634,2]
[400763898,1767821442654,-1476.84,0.00016342,2]
[400763900,1767821442663,-8314.01418062,0.00016354,2]
[400763902,1767821442673,-1000.0,0.00016356,2]
[400763904,1767821442687,-342.6,0.00016356,2]
[400763906,1767821442696,-721.57,0.00016356,2]
[400763908,1767821442706,-693.0,0.00016368,2]
[400763910,1767821442716,-198.23117805,0.00016409,2]
[400763912,1767821442726,-693.0,0.00016423,2]
[400763914,1767821442735,-500.0,0.00016437,2]
[400763916,1767821442745,-500.0,0.00016438,2]
[400763918,1767821442755,-500.0,0.00016438,2]
[400763920,1767821442765,-500.0,0.00016438,2]
[400763922,1767821442775,-500.0,0.00016438,2]
[400763924,1767821442784,-500.0,0.00016438,2]
[400763926,1767821442793,-500.0,0.00016438,2]
[400763928,1767821442802,-500.0,0.00016438,2]
[400763930,1767821442812,-500.0,0.00016438,2]
[400763932,1767821442823,-500.0,0.00016438,2]
[400763934,1767821442833,-500.0,0.00016438,2]
[400763936,1767821442842,-500.0,0.00016438,2]
[400763938,1767821442851,-500.0,0.00016438,2]
[400763940,1767821442860,-500.0,0.00016438,2]
[400763942,1767821442869,-500.0,0.00016438,2]
[400763944,1767821442879,-500.0,0.00016438,2]
[400763946,1767821442888,-500.0,0.00016438,2]
[400763948,1767821442898,-500.0,0.00016438,2]
[400763950,1767821442907,-500.0,0.00016438,2]
[400763952,1767821442917,-500.0,0.00016438,2]
[400763954,1767821442927,-500.0,0.00016438,2]
[400763956,1767821442936,-500.0,0.00016438,2]
[400763958,1767821442945,-500.0,0.00016438,2]
[400763960,1767821442956,-500.0,0.00016438,2]
[400763962,1767821442965,-500.0,0.00016438,2]
[400763964,1767821442975,-436.89680351,0.00016438,2]
[400763966,1767821442984,-1632.3072046,0.00016438,2]
[400763968,1767821442993,-1632.3072046,0.00016438,2]
[400763970,1767821443003,-1632.3072046,0.00016438,2]
[400763972,1767821443012,-1632.3072046,0.00016438,2]
[400763975,1767821443022,-1632.3072046,0.00016438,2]
[400763977,1767821443032,-1632.3072046,0.00016438,2]
[400763979,1767821443041,-1632.3072046,0.00016438,2]
[400763981,1767821443050,-1632.3072046,0.00016438,2]
[400763983,1767821443060,-1632.3072046,0.00016438,2]
[400763985,1767821443069,-1632.3072046,0.00016438,2]
[400763987,1767821443079,-1632.3072046,0.00016438,2]
[400763989,1767821443088,-1632.3072046,0.00016438,2]
[400763991,1767821443097,-1632.3072046,0.00016438,2]
[400763993,1767821443107,-1632.3072046,0.00016438,2]
[400763995,1767821443116,-1632.3072046,0.00016438,2]
[400763997,1767821443127,-1632.3072046,0.00016438,2]
[400763999,1767821443137,-1632.3072046,0.00016438,2]
[400764001,1767821443146,-1632.3072046,0.00016438,2]
[400764003,1767821443156,-1632.3072046,0.00016438,2]
[400764005,1767821443165,-1632.3072046,0.00016438,2]
[400764007,1767821443175,-1632.3072046,0.00016438,2]
[400764009,1767821443184,-1632.3072046,0.00016438,2]
[400764011,1767821443193,-1632.3072046,0.00016438,2]
[400764013,1767821443203,-1632.3072046,0.00016438,2]
[400764014,1767821443212,-1632.3072046,0.00016438,2]
[400764016,1767821443222,-1632.3072046,0.00016438,2]
[400764019,1767821443232,-1632.3072046,0.00016438,2]
[400764021,1767821443241,-1632.3072046,0.00016438,2]
[400764023,1767821443251,-1632.3072046,0.00016438,2]
[400764025,1767821443261,-1632.3072046,0.00016438,2]
[400764027,1767821443270,-1632.3072046,0.00016438,2]
[400764029,1767821443281,-1632.3072046,0.00016438,2]
[400764031,1767821443290,-1632.3072046,0.00016438,2]
[400764033,1767821443299,-1632.3072046,0.00016438,2]
[400764035,1767821443308,-1632.3072046,0.00016438,2]
[400764037,1767821443317,-1632.3072046,0.00016438,2]
[400764039,1767821443327,-1632.3072046,0.00016438,2]
[400764040,1767821443336,-1632.3072046,0.00016438,2]
[400764042,1767821443345,-1632.3072046,0.00016438,2]
[400764044,1767821443354,-1632.3072046,0.00016438,2]
[400764046,1767821443364,-1632.3072046,0.00016438,2]
[400764048,1767821443373,-1632.3072046,0.00016438,2]
[400764051,1767821443383,-1632.3072046,0.00016438,2]
[400764053,1767821443392,-1632.3072046,0.00016438,2]
[400764054,1767821443402,-1632.3072046,0.00016438,2]
[400764057,1767821443412,-1632.3072046,0.00016438,2]
[400764058,1767821443422,-1632.3072046,0.00016438,2]
[400764060,1767821443433,-1632.3072046,0.00016438,2]
[400764062,1767821443442,-1632.3072046,0.00016438,2]
[400764065,1767821443452,-1632.3072046,0.00016438,2]
[400764066,1767821443462,-1632.3072046,0.00016438,2]
[400764069,1767821443471,-1632.3072046,0.00016438,2]
[400764070,1767821443480,-1585.66985589,0.00016438,2]
[400764073,1767821443490,-1585.66985589,0.00016438,2]
[400764075,1767821443499,-1585.66985589,0.00016438,2]
[400764077,1767821443509,-1585.66985589,0.00016438,2]
[400764078,1767821443517,-1585.66985589,0.00016438,2]
[400764080,1767821443526,-1585.66985589,0.00016438,2]
[400764082,1767821443536,-1585.66985589,0.00016438,2]
[400764084,1767821443545,-1585.66985589,0.00016438,2]
[400764086,1767821443554,-1585.66985589,0.00016438,2]
[400764088,1767821443564,-1585.66985589,0.00016438,2]
[400764090,1767821443574,-1585.66985589,0.00016438,2]
[400764092,1767821443583,-1585.66985589,0.00016438,2]
[400764094,1767821443593,-1585.66985589,0.00016438,2]
[400764096,1767821443603,-800.0,0.00016438,2]
[400764098,1767821443613,-693.0,0.00016478,2]
[400764100,1767821443622,-693.0,0.00016533,2]
[400764102,1767821443632,-482.63,0.00016541,2]
[400764104,1767821443642,-341.3,0.00016576,2]
[400764106,1767821443651,-693.0,0.00016587,2]
[400764108,1767821443661,-1852.42,0.00016606,2]
[400764110,1767821443671,-1476.84,0.00016616,2]
[400764112,1767821443686,-5702.97,0.0001662,2]
[400764114,1767821443696,-693.0,0.00016642,2]
[400764116,1767821443706,-500.0,0.00016643,2]
[400764118,1767821443716,-507.8387061,0.00016643,2]
[400764120,1767821443727,-500.0,0.00016643,2]
[400764123,1767821443738,-628.50709886,0.00016643,2]
[400764125,1767821443747,-500.0,0.00016643,2]
[400764127,1767821443759,-433.0,0.00016676,2]
[400764128,1767821443769,-466.59,0.00016678,2]
[400764131,1767821443778,-693.0,0.00016697,2]
[400764133,1767821443788,-656.1290636,0.000167,2]
[400764134,1767821443798,-2000.0,0.00016716,2]
[400764136,1767821443807,-2000.0,0.00016716,2]
[400764139,1767821443816,-2000.0,0.00016716,2]
[400764140,1767821443825,-152.22115376,0.00016716,2]
[400764142,1767821443834,-1081.33997457,0.00016733,2]
[400764144,1767821443843,-8314.01418062,0.00016741,2]
[400764146,1767821443852,-300.0,0.0001675,2]
[400764148,1767821443861,-467.24,0.00016751,2]
[400764150,1767821443870,-693.0,0.00016752,2]
[400764152,1767821443879,-300.0,0.00016753,2]
[400764154,1767821443888,-300.0,0.00016758,2]
[400764156,1767821443897,-167.14,0.00016767,2]
[400764158,1767821443906,-693.0,0.00016806,2]
[400764160,1767821443915,-322.6107,0.00016825,2]
[400764162,1767821443924,-200.0,0.00016825,2]
[400764165,1767821443934,-207.4,0.00016825,2]
[400764166,1767821443943,-215.0738,0.00016825,2]
[400764168,1767821443952,-223.0315306,0.00016825,2]
[400764170,1767821443961,-500.0,0.00016825,2]
[400764172,1767821443970,-231.28369723,0.00016825,2]
[400764174,1767821443979,-500.0,0.00016825,2]
[400764176,1767821443988,-239.84119403,0.00016825,2]
[400764178,1767821443996,-248.71531821,0.00016825,2]
[400764181,1767821444006,-257.91778498,0.00016825,2]
[400764183,1767821444015,-500.0,0.00016825,2]
[400764186,1767821444024,-574.12855637,0.00016825,2]
[400764189,1767821444033,-267.46074303,0.00016825,2]
[400764191,1767821444042,-500.0,0.00016825,2]
[400764193,1767821444055,-277.35679052,0.00016825,2]
[400764194,1767821444064,-500.0,0.00016825,2]
[400764196,1767821444075,-500.0,0.00016825,2]
[400764198,1767821444084,-500.0,0.00016825,2]
[400764200,1767821444093,-500.0,0.00016825,2]
[400764202,1767821444102,-500.0,0.00016825,2]
[400764204,1767821444111,-151.55763012,0.00016825,2]
[400764206,1767821444120,-500.0,0.00016825,2]
[400764208,1767821444129,-448.72451731,0.00016825,2]
[400764210,1767821444139,-500.0,0.00016825,2]
[400764212,1767821444147,-500.0,0.00016825,2]
[400764214,1767821444158,-500.0,0.00016825,2]
[400764216,1767821444167,-2000.0,0.00016825,2]
[400764218,1767821444179,-620.0,0.00016825,2]
[400764220,1767821444188,-500.0,0.00016825,2]
[400764222,1767821444197,-500.0,0.00016825,2]
[400764224,1767821444207,-2000.0,0.00016825,2]
[400764226,1767821444216,-500.0,0.00016825,2]
[400764228,1767821444225,-2000.0,0.00016825,2]
[400764230,1767821444235,-500.0,0.00016825,2]
[400764232,1767821444244,-2000.0,0.00016825,2]
[400764234,1767821444253,-500.0,0.00016825,2]
[400764236,1767821444262,-2000.0,0.00016825,2]
[400764238,1767821444271,-500.0,0.00016825,2]
[400764240,1767821444281,-250.0,0.00016825,2]
[400764242,1767821444290,-2000.0,0.00016825,2]
[400764244,1767821444300,-250.0,0.00016825,2]
[400764246,1767821444309,-500.0,0.00016825,2]
[400764248,1767821444318,-2000.0,0.00016825,2]
[400764250,1767821444327,-500.0,0.00016825,2]
[400764252,1767821444337,-2000.0,0.00016825,2]
[400764254,1767821444347,-500.0,0.00016825,2]
[400764256,1767821444357,-2000.0,0.00016825,2]
[400764258,1767821444366,-500.0,0.00016825,2]
[400764260,1767821444375,-2000.0,0.00016825,2]
[400764262,1767821444384,-500.0,0.00016825,2]
[400764264,1767821444394,-2000.0,0.00016825,2]
[400764266,1767821444403,-578.20924308,0.00016825,2]
[400764268,1767821444412,-300.0,0.0001685,2]
[400764270,1767821444422,-300.0,0.00016856,2]
[400764272,1767821444432,-707.2212164,0.00016861,2]
[400764274,1767821444441,-1476.84,0.0001689,2]
[400764276,1767821444451,-198.23117805,0.00016906,2]